[Event "VI Sunway Sitges Open 2019"]
[Site "Sitges"]
[Date "2019.12.14"]
[Round "2.46"]
[White "Samant Aditya S"]
[Black "Sadzikowski, Daniel"]
[Result "1/2-1/2"]
[ECO "B19"]
[WhiteElo "2309"]
[BlackElo "2504"]
[Annotator "ChessBase"]
[PlyCount "60"]
[EventDate "2019.12.13"]
[EventType "swiss"]
[EventCountry "ESP"]
[SourceTitle "playchess.com"]
[Source "ChessBase"]
[SourceQuality "1"]
[TimeControl "40/5400+30:1800+30"]

1. e4 {[%emt 0:00:00]} c6 {[%emt 0:00:00]} 2. d4 {[%emt 0:00:00]} d5 {[%emt 0:00:00]} 3. Nc3 {[%emt 0:00:00]} dxe4 {[%emt 0:00:00]} 4. Nxe4 {[%emt 0:00:00]} Bf5 {[%emt 0:00:00]} 5. Ng3 {[%emt 0:00:06]} Bg6 {[%emt 0:00:03]} 6. h4 {[%emt 0:00:07]} h6 {[%emt 0:00:09]} 7. Nf3 {[%emt 0:00:08]} Nd7 {[%emt 0:00:26]} 8. h5 {[%emt 0:00:29]} Bh7 {[%emt 0:00:06]} 9. Bd3 {[%emt 0:00:06]} Bxd3 {[%emt 0:00:06]} 10. Qxd3 {[%emt 0:00:06]} e6 {[%emt 0:00:12]} 11. Bd2 {[%emt 0:00:08]} Ngf6 {[%emt 0:00:21]} 12. O-O-O {[%emt 0:00:14]} Be7 {[%emt 0:00:39]} 13. Kb1 {[%emt 0:00:28]} Qb6 {[%emt 0:01:04]} 14. Rhe1 {[%emt 0:02:45]} O-O {[%emt 0:01:32]} 15. Nf5 {[%emt 0:03:51]} Bb4 {[%emt 0:00:06]} 16. Bxb4 {[%emt 0:06:42]} Qxb4 {[%emt 0:00:13]} 17. c3 {[%emt 0:03:15]} Qb6 {[%emt 0:15:56]} 18. Ne7+ {[%emt 0:02:44]} Kh8 {[%emt 0:00:01]} 19. Rxe6 {[%emt 0:01:43]} fxe6 {[%emt 0:00:02]} 20. Nh4 {[%emt 0:00:09]} g5 {[%emt 0:00:02]} 21. Nhg6+ {[%emt 0:00:10]} Kg7 {[%emt 0:00:07]} 22. Ne5 {[%emt 0:00:06]} Nxe5 {[%emt 0:01:08]} 23. dxe5 {[%emt 0:00:06]} Nh7 {[%emt 0:00:25]} 24. Qg6+ {[%emt 0:00:32]} Kh8 {[%emt 0:00:22]} 25. Qxh6 {[%emt 0:00:09]} Rad8 {[%emt 0:25:05]} 26. Ng6+ {[%emt 0:00:26]} Kg8 {[%emt 0:00:02]} 27. Ne7+ {[%emt 0:00:14]} Kh8 {[%emt 0:00:13]} 28. Ng6+ {[%emt 0:00:09]} Kg8 {[%emt 0:00:05]} 29. Ne7+ {[%emt 0:00:10]} Kh8 {[%emt 0:00:05]} 30. Ng6+ {[%emt 0:00:15]} Kg8 {[%emt 0:00:05]} 1/2-1/2

[Event "VI Sunway Sitges Open 2019"]
[Site "Sitges"]
[Date "2019.12.14"]
[Round "2.48"]
[White "Toshali, V."]
[Black "Shivika Rohilla"]
[Result "1-0"]
[ECO "D02"]
[WhiteElo "2083"]
[BlackElo "1744"]
[Annotator "NA"]
[PlyCount "127"]
[EventDate "2019.12.13"]
[EventType "swiss"]
[EventCountry "ESP"]
[SourceTitle "playchess.com"]
[Source "ChessBase"]
[SourceQuality "1"]
[TimeControl "40/5400+30:1800+30"]

1. d4 {[%emt 0:05:39]} d5 {[%emt 0:00:00]} 2. Nf3 {[%emt 0:00:08]} Nf6 {[%emt 0:00:00]} 3. Bf4 {[%emt 0:00:07]} e6 {[%emt 0:00:00]} 4. e3 {[%emt 0:00:06]} Bd6 {[%emt 0:00:22]} 5. Bxd6 {[%emt 0:01:00]} Qxd6 {[%emt 0:00:31]} 6. c4 {[%emt 0:00:19]} Qb4+ {[%emt 0:08:40]} 7. Nbd2 {[%emt 0:00:07]} Qxb2 {[%emt 0:06:07]} 8. Bd3 {[%emt 0:05:26]} Qa3 {[%emt 0:02:59]} 9. Qe2 {[%emt 0:04:39]} Nbd7 {[%emt 0:02:26]} 10. c5 {[%emt 0:03:01]} c6 {[%emt 0:03:47]} 11. O-O {[%emt 0:17:10]} Qa5 {[%emt 0:01:21]} 12. Nh4 {[%emt 0:07:26]} Qd8 {[%emt 0:06:27]} 13. g3 {[%emt 0:02:31]} O-O {[%emt 0:00:43]} 14. f4 {[%emt 0:05:10]} b6 {[%emt 0:03:32]} 15. cxb6 {[%emt 0:00:36]} axb6 {[%emt 0:00:15]} 16. Nhf3 {[%emt 0:01:12]} c5 {[%emt 0:09:15]} 17. Ne5 {[%emt 0:06:29]} c4 {[%emt 0:01:22]} 18. Bc2 {[%emt 0:00:06]} Ba6 {[%emt 0:01:28]} 19. Ndf3 {[%emt 0:01:43]} Ne4 {[%emt 0:03:43]} 20. Qg2 {[%emt 0:10:30]} f6 {[%emt 0:08:16]} 21. Nc6 {[%emt 0:02:54]} Qc7 {[%emt 0:00:47]} 22. Nb4 {[%emt 0:00:32]} Bb7 {[%emt 0:03:05]} 23. Qh3 {[%emt 0:03:15]} Qd6 {[%emt 0:01:22]} 24. a3 {[%emt 0:01:10]} Ra5 {[%emt 0:01:32]} 25. f5 {[%emt 0:04:50]} exf5 {[%emt 0:05:19]} 26. Qxf5 {[%emt 0:02:22]} g6 {[%emt 0:00:21]} 27. Qh3 {[%emt 0:00:40]} Rfa8 {[%emt 0:04:20]} 28. Bxe4 {[%emt 0:02:48]} dxe4 {[%emt 0:00:28]} 29. Nd2 {[%emt 0:00:49]} b5 {[%emt 0:00:40]} 30. Nc2 {[%emt 0:01:01]} Bd5 {[%emt 0:02:22]} 31. Qh4 {[%emt 0:04:47]} f5 {[%emt 0:02:27]} 32. Rf2 {[%emt 0:00:38]} Ra4 {[%emt 0:04:38]} 33. g4 {[%emt 0:02:26]} fxg4 {[%emt 0:05:27]} 34. Qxg4 {[%emt 0:00:38]} Nf6 {[%emt 0:02:56]} 35. Qg5 {[%emt 0:00:58]} Nd7 {[%emt 0:02:58]} 36. Raf1 {[%emt 0:02:30]} Rf8 {[%emt 0:02:29]} 37. Nb1 {[%emt 0:00:57]} Raa8 {[%emt 0:03:41]} 38. Nc3 {[%emt 0:00:34]} Bc6 {[%emt 0:01:22]} 39. Rxf8+ {[%emt 0:01:19]} Rxf8 {[%emt 0:00:18]} 40. Rxf8+ {[%emt 0:00:00]} Qxf8 {[%emt 0:00:00]} 41. d5 {[%emt 0:05:45]} Bb7 {[%emt 0:02:11]} 42. Nxe4 {[%emt 0:05:09]} Qf5 {[%emt 0:01:07]} 43. Qxf5 {[%emt 0:09:10]} gxf5 {[%emt 0:00:06]} 44. Nc3 {[%emt 0:00:05]} Nf6 {[%emt 0:01:35]} 45. d6 {[%emt 0:00:20]} Bc6 {[%emt 0:02:21]} 46. Nd4 {[%emt 0:00:46]} Bd7 {[%emt 0:00:09]} 47. Ndxb5 {[%emt 0:02:35]} Ng4 {[%emt 0:00:19]} 48. a4 {[%emt 0:01:29]} Nxe3 {[%emt 0:00:22]} 49. a5 {[%emt 0:00:28]} Kf7 {[%emt 0:00:41]} 50. Nc7 {[%emt 0:00:35]} f4 {[%emt 0:02:10]} 51. a6 {[%emt 0:00:32]} Nf5 {[%emt 0:00:10]} 52. a7 {[%emt 0:03:15]} Bc6 {[%emt 0:00:05]} 53. N3b5 {[%emt 0:01:36]} c3 {[%emt 0:00:20]} 54. Nxc3 {[%emt 0:00:07]} Nxd6 {[%emt 0:00:06]} 55. a8=Q Bxa8 {[%emt 0:00:03]} 56. Nxa8 {[%emt 0:00:29]} Kf6 {[%emt 0:00:43]} 57. Nc7 {[%emt 0:01:02]} f3 {[%emt 0:00:24]} 58. Kf2 {[%emt 0:00:31]} Kg5 {[%emt 0:00:28]} 59. Kxf3 {[%emt 0:01:07]} Kh4 {[%emt 0:00:23]} 60. Kg2 {[%emt 0:00:16]} Nc4 {[%emt 0:00:32]} 61. Nd1 {[%emt 0:01:33]} Ne5 {[%emt 0:00:32]} 62. Nf2 {[%emt 0:01:12]} h6 {[%emt 0:01:05]} 63. Ne6 {[%emt 0:00:42]} h5 {[%emt 0:00:33]} 64. Nd4 {[%emt 0:00:21]} 1-0

[Event "VI Sunway Sitges Open 2019"]
[Site "Sitges"]
[Date "2019.12.14"]
[Round "2.49"]
[White "Isaksson, Max"]
[Black "Fogel, Pierre"]
[Result "0-1"]
[ECO "B40"]
[WhiteElo "1713"]
[BlackElo "2078"]
[Annotator "NA"]
[PlyCount "66"]
[EventDate "2019.12.13"]
[EventType "swiss"]
[EventCountry "ESP"]
[SourceTitle "playchess.com"]
[Source "ChessBase"]
[SourceQuality "1"]
[TimeControl "40/5400+30:1800+30"]

1. e4 {[%emt 0:00:03]} c5 {[%emt 0:04:56]} 2. Nf3 {[%emt 0:00:06]} e6 {[%emt 0:00:22]} 3. d4 {[%emt 0:00:07]} cxd4 {[%emt 0:00:07]} 4. Nxd4 {[%emt 0:00:07]} Nc6 {[%emt 0:00:09]} 5. Nxc6 {[%emt 0:00:05]} bxc6 {[%emt 0:00:09]} 6. Bd3 {[%emt 0:00:08]} d5 {[%emt 0:02:34]} 7. O-O {[%emt 0:00:48]} Nf6 {[%emt 0:00:17]} 8. Nd2 {[%emt 0:00:30]} Be7 {[%emt 0:00:51]} 9. Qe2 {[%emt 0:00:30]} O-O {[%emt 0:00:28]} 10. b3 {[%emt 0:01:20]} a5 {[%emt 0:00:59]} 11. a4 {[%emt 0:03:46]} Qb6 {[%emt 0:01:20]} 12. Bb2 {[%emt 0:05:05]} Ba6 {[%emt 0:00:28]} 13. Bxa6 {[%emt 0:04:15]} Qxa6 {[%emt 0:01:46]} 14. Qf3 {[%emt 0:07:54]} Rab8 {[%emt 0:03:17]} 15. Qg3 {[%emt 0:06:39]} Rfd8 {[%emt 0:13:08]} 16. f4 {[%emt 0:06:40]} Qe2 {[%emt 0:13:21]} 17. Rad1 {[%emt 0:11:27]} dxe4 {[%emt 0:18:57]} 18. Rfe1 {[%emt 0:05:02]} Qh5 {[%emt 0:08:54]} 19. Qg5 {[%emt 0:17:58]} Rd5 {[%emt 0:06:46]} 20. Qxh5 {[%emt 0:09:02]} Nxh5 {[%emt 0:00:10]} 21. Nxe4 {[%emt 0:02:38]} Rbd8 {[%emt 0:01:48]} 22. Rxd5 {[%emt 0:03:57]} cxd5 {[%emt 0:00:23]} 23. Ng3 {[%emt 0:00:54]} Nxf4 {[%emt 0:01:36]} 24. Be5 {[%emt 0:05:49]} Bd6 {[%emt 0:05:12]} 25. Bc3 {[%emt 0:02:11]} Rc8 {[%emt 0:01:30]} 26. Bxa5 {[%emt 0:01:43]} Rxc2 {[%emt 0:00:22]} 27. Rb1 {[%emt 0:00:42]} Nxg2 {[%emt 0:04:15]} 28. b4 {[%emt 0:00:38]} Nh4 {[%emt 0:00:12]} 29. b5 {[%emt 0:00:58]} Nf3+ {[%emt 0:00:16]} 30. Kf1 {[%emt 0:00:23]} Nxh2+ {[%emt 0:00:26]} 31. Kg1 {[%emt 0:00:38]} Bxg3 {[%emt 0:01:22]} 32. b6 {[%emt 0:00:05]} Nf3+ {[%emt 0:00:21]} 33. Kf1 {[%emt 0:00:11]} Rf2# {[%emt 0:00:20]} 0-1

[Event "VI Sunway Sitges Open 2019"]
[Site "Sitges"]
[Date "2019.12.14"]
[Round "2.50"]
[White "Rosh Jain"]
[Black "Huguet, Sergio"]
[Result "1/2-1/2"]
[ECO "B27"]
[WhiteElo "1697"]
[BlackElo "2076"]
[Annotator "NA"]
[PlyCount "115"]
[EventDate "2019.12.13"]
[EventType "swiss"]
[EventCountry "ESP"]
[SourceTitle "playchess.com"]
[Source "ChessBase"]
[SourceQuality "1"]
[TimeControl "40/5400+30:1800+30"]

1. e4 {[%emt 1:48:01]} c5 {[%emt 0:03:31]} 2. Nf3 {[%emt 0:00:26]} g6 {[%emt 0:00:16]} 3. d4 {[%emt 0:00:08]} cxd4 {[%emt 0:00:12]} 4. Qxd4 {[%emt 0:00:15]} Nf6 {[%emt 0:00:45]} 5. e5 {[%emt 0:00:18]} Nc6 {[%emt 0:00:40]} 6. Qa4 {[%emt 0:00:10]} Nd5 {[%emt 0:01:47]} 7. Qe4 {[%emt 0:00:11]} Nc7 {[%emt 0:02:37]} 8. Bd3 {[%emt 0:03:15]} Bg7 {[%emt 0:02:07]} 9. Nc3 {[%emt 0:02:35]} Ne6 {[%emt 0:04:52]} 10. Be3 {[%emt 0:01:10]} Qa5 {[%emt 0:01:56]} 11. Bb5 {[%emt 0:01:45]} a6 {[%emt 0:06:01]} 12. Bxc6 {[%emt 0:00:08]} bxc6 {[%emt 0:03:53]} 13. O-O {[%emt 0:06:59]} Rb8 {[%emt 0:02:53]} 14. Rab1 {[%emt 0:02:10]} O-O {[%emt 0:04:14]} 15. b4 {[%emt 0:01:25]} Qc7 {[%emt 0:01:50]} 16. Rfe1 {[%emt 0:08:13]} d5 {[%emt 0:03:59]} 17. Qh4 {[%emt 0:04:04]} Rd8 {[%emt 0:09:16]} 18. a4 {[%emt 0:13:55]} d4 {[%emt 0:16:07]} 19. Nxd4 {[%emt 0:14:05]} Bxe5 {[%emt 0:00:19]} 20. Nxe6 {[%emt 0:01:41]} Bxe6 {[%emt 0:01:20]} 21. Ne4 {[%emt 0:02:39]} Bf5 {[%emt 0:02:00]} 22. Ng5 {[%emt 0:04:59]} h5 {[%emt 0:00:42]} 23. Nf3 {[%emt 0:02:37]} Bxc2 {[%emt 0:06:42]} 24. Rbc1 {[%emt 0:01:34]} Bf6 {[%emt 0:01:40]} 25. Bf4 {[%emt 0:06:46]} Qb7 {[%emt 0:01:37]} 26. Qg3 {[%emt 0:00:43]} Bxa4 {[%emt 0:02:27]} 27. Bxb8 {[%emt 0:00:09]} Rxb8 {[%emt 0:02:36]} 28. Rc4 {[%emt 0:06:08]} Bb3 {[%emt 0:01:45]} 29. Rxc6 {[%emt 0:02:09]} Bd5 {[%emt 0:02:34]} 30. Rxa6 {[%emt 0:04:23]} Qxb4 {[%emt 0:01:56]} 31. Ra4 {[%emt 0:02:50]} Qb6 {[%emt 0:02:57]} 32. Ne5 {[%emt 0:01:43]} h4 {[%emt 0:03:36]} 33. Qf4 {[%emt 0:00:25]} g5 {[%emt 0:01:07]} 34. Qf5 {[%emt 0:00:31]} Be6 {[%emt 0:00:50]} 35. Qe4 {[%emt 0:00:42]} Qb5 {[%emt 0:00:44]} 36. Raa1 {[%emt 0:00:50]} Bd5 {[%emt 0:01:17]} 37. Qf5 {[%emt 0:00:48]} Be6 {[%emt 0:01:45]} 38. Qe4 {[%emt 0:00:18]} Bd5 {[%emt 0:00:15]} 39. Qc2 {[%emt 0:01:34]} Bb3 {[%emt 0:02:45]} 40. Qe2 {[%emt 0:01:11]} Qxe2 {[%emt 0:01:41]} 41. Rxe2 {[%emt 0:00:03]} Rb5 {[%emt 0:01:20]} 42. Rae1 {[%emt 0:00:23]} Be6 {[%emt 0:02:41]} 43. Nf3 {[%emt 0:02:41]} g4 {[%emt 0:02:48]} 44. Nd2 {[%emt 0:00:45]} Bd4 {[%emt 0:02:35]} 45. Ne4 {[%emt 0:01:39]} Kg7 {[%emt 0:02:20]} 46. Rd2 {[%emt 0:01:30]} Bb6 {[%emt 0:00:39]} 47. Rdd1 {[%emt 0:05:47]} Bf5 {[%emt 0:03:17]} 48. Rb1 {[%emt 0:01:17]} Rxb1 {[%emt 0:01:45]} 49. Rxb1 Bxf2+ {[%emt 0:01:01]} 50. Kxf2 {[%emt 0:00:13]} Bxe4 {[%emt 0:00:13]} 51. Rb4 {[%emt 0:00:52]} f5 {[%emt 0:02:18]} 52. g3 {[%emt 0:00:17]} hxg3+ {[%emt 0:00:45]} 53. hxg3 {[%emt 0:00:02]} Kf6 {[%emt 0:03:13]} 54. Rb6+ {[%emt 0:00:52]} e6 {[%emt 0:00:53]} 55. Ke3 {[%emt 0:00:27]} Bd5 {[%emt 0:01:01]} 56. Kf4 {[%emt 0:00:10]} Bc4 {[%emt 0:00:35]} 57. Rc6 {[%emt 0:00:22]} Bd5 {[%emt 0:00:10]} 58. Ra6 {[%emt 0:02:25]} 1/2-1/2

[Event "VI Sunway Sitges Open 2019"]
[Site "Sitges"]
[Date "2019.12.14"]
[Round "2.51"]
[White "Dhrupad Kashyap"]
[Black "Zheng, Harry Z"]
[Result "1/2-1/2"]
[ECO "A29"]
[WhiteElo "2073"]
[BlackElo "1704"]
[Annotator "NA"]
[PlyCount "82"]
[EventDate "2019.12.13"]
[EventType "swiss"]
[EventCountry "ESP"]
[SourceTitle "playchess.com"]
[Source "ChessBase"]
[SourceQuality "1"]
[TimeControl "40/5400+30:1800+30"]

1. c4 {[%emt 0:00:00]} e5 {[%emt 0:00:00]} 2. d3 {[%emt 0:00:29]} Nf6 {[%emt 0:00:00]} 3. Nf3 {[%emt 0:00:08]} Nc6 {[%emt 0:00:12]} 4. g3 {[%emt 0:01:07]} d5 {[%emt 0:00:11]} 5. cxd5 {[%emt 0:01:17]} Nxd5 {[%emt 0:00:11]} 6. Bg2 {[%emt 0:00:04]} Be6 {[%emt 0:01:50]} 7. O-O {[%emt 0:01:18]} Be7 {[%emt 0:00:16]} 8. Nc3 {[%emt 0:02:00]} O-O {[%emt 0:01:05]} 9. Nxd5 {[%emt 0:05:03]} Bxd5 {[%emt 0:00:16]} 10. Be3 {[%emt 0:00:03]} f5 {[%emt 0:06:51]} 11. Rc1 {[%emt 0:04:06]} Be6 {[%emt 0:04:17]} 12. Bc5 {[%emt 0:01:16]} Bxc5 {[%emt 0:02:48]} 13. Rxc5 {[%emt 0:00:07]} Qe7 {[%emt 0:01:52]} 14. b4 {[%emt 0:15:23]} Bxa2 {[%emt 0:11:20]} 15. Qa4 {[%emt 0:01:23]} Bf7 {[%emt 0:00:47]} 16. Qb5 {[%emt 0:02:12]} e4 {[%emt 0:09:55]} 17. dxe4 {[%emt 0:00:17]} fxe4 {[%emt 0:00:11]} 18. Ng5 {[%emt 0:08:34]} Nd4 {[%emt 0:21:23]} 19. Qxb7 {[%emt 0:00:12]} Nxe2+ {[%emt 0:01:03]} 20. Kh1 {[%emt 0:00:05]} Rab8 {[%emt 0:00:09]} 21. Qxe4 {[%emt 0:02:17]} Qxe4 {[%emt 0:02:00]} 22. Bxe4 {[%emt 0:00:26]} Rxb4 {[%emt 0:03:18]} 23. Bxh7+ {[%emt 0:02:54]} Kh8 {[%emt 0:01:06]} 24. Bd3 {[%emt 0:02:33]} Nd4 {[%emt 0:02:28]} 25. Nxf7+ {[%emt 0:05:24]} Rxf7 {[%emt 0:00:12]} 26. Bc4 {[%emt 0:01:01]} Rf5 {[%emt 0:03:28]} 27. Rxc7 {[%emt 0:00:12]} Rf8 {[%emt 0:04:17]} 28. Rc5 {[%emt 0:10:04]} g6 {[%emt 0:02:32]} 29. Rd1 {[%emt 0:05:16]} Rxf2 {[%emt 0:07:17]} 30. Rc8+ {[%emt 0:04:21]} Kg7 {[%emt 0:00:14]} 31. h4 {[%emt 0:10:49]} Rc2 {[%emt 0:05:36]} 32. Be6 {[%emt 0:00:14]} Rxc8 {[%emt 0:00:22]} 33. Bxc8 {[%emt 0:00:02]} a5 {[%emt 0:00:47]} 34. Ra1 {[%emt 0:01:31]} a4 {[%emt 0:01:03]} 35. Bd7 {[%emt 0:00:31]} Ne2 {[%emt 0:01:50]} 36. Kh2 {[%emt 0:04:17]} Rb7 {[%emt 0:02:59]} 37. Bxa4 {[%emt 0:00:54]} Ra7 {[%emt 0:00:24]} 38. Re1 {[%emt 0:02:28]} Nxg3 {[%emt 0:00:59]} 39. Kxg3 {[%emt 0:00:35]} Rxa4 {[%emt 0:00:06]} 40. Re6 {[%emt 0:00:00]} Kh6 {[%emt 0:00:00]} 41. Rb6 {[%emt 0:00:30]} Kh5 {[%emt 0:01:27]} 1/2-1/2

[Event "VI Sunway Sitges Open 2019"]
[Site "Sitges"]
[Date "2019.12.14"]
[Round "2.52"]
[White "Isaksson, Philip"]
[Black "Parals Marce, Luis"]
[Result "0-1"]
[ECO "B07"]
[WhiteElo "1638"]
[BlackElo "2063"]
[Annotator "NA"]
[PlyCount "102"]
[EventDate "2019.12.13"]
[EventType "swiss"]
[EventCountry "ESP"]
[SourceTitle "playchess.com"]
[Source "ChessBase"]
[SourceQuality "1"]
[TimeControl "40/5400+30:1800+30"]

1. e4 {[%emt 0:01:00]} d6 {[%emt 0:00:00]} 2. d4 {[%emt 0:00:05]} Nf6 {[%emt 0:00:06]} 3. Nc3 {[%emt 0:00:07]} e5 {[%emt 0:00:17]} 4. dxe5 {[%emt 0:01:14]} dxe5 {[%emt 0:00:14]} 5. Qxd8+ {[%emt 0:00:13]} Kxd8 {[%emt 0:00:08]} 6. Bg5 {[%emt 0:00:23]} Bd6 {[%emt 0:05:30]} 7. O-O-O {[%emt 0:03:38]} a6 {[%emt 0:05:13]} 8. Bc4 {[%emt 0:02:07]} Be6 {[%emt 0:02:02]} 9. Bxe6 {[%emt 0:03:17]} fxe6 {[%emt 0:00:07]} 10. f4 {[%emt 0:02:44]} Nc6 {[%emt 0:03:36]} 11. Nf3 {[%emt 0:01:02]} Ke7 {[%emt 0:02:36]} 12. f5 {[%emt 0:04:00]} Bb4 {[%emt 0:07:02]} 13. Rhe1 {[%emt 0:09:48]} Rad8 {[%emt 0:06:10]} 14. a3 {[%emt 0:03:46]} Bxc3 {[%emt 0:00:24]} 15. bxc3 {[%emt 0:00:07]} Rxd1+ {[%emt 0:00:28]} 16. Rxd1 {[%emt 0:02:16]} Rd8 {[%emt 0:07:36]} 17. Rxd8 {[%emt 0:03:35]} Kxd8 {[%emt 0:00:11]} 18. Kd2 {[%emt 0:08:44]} Kd7 {[%emt 0:00:35]} 19. Bxf6 {[%emt 0:00:36]} gxf6 {[%emt 0:00:08]} 20. Ke3 {[%emt 0:00:43]} Na5 {[%emt 0:06:45]} 21. Nd2 {[%emt 0:00:25]} b5 {[%emt 0:01:34]} 22. Kd3 {[%emt 0:03:31]} Nb7 {[%emt 0:11:11]} 23. c4 {[%emt 0:08:25]} Nc5+ {[%emt 0:02:17]} 24. Ke3 {[%emt 0:00:55]} Kd6 {[%emt 0:10:03]} 25. g4 {[%emt 0:03:01]} exf5 {[%emt 0:01:35]} 26. gxf5 {[%emt 0:01:22]} Kc6 {[%emt 0:04:28]} 27. cxb5+ {[%emt 0:09:56]} Kxb5 {[%emt 0:00:34]} 28. Nb3 {[%emt 0:00:59]} Nb7 {[%emt 0:01:27]} 29. Kd3 {[%emt 0:10:42]} Nd6 {[%emt 0:04:07]} 30. c3 {[%emt 0:02:44]} c6 {[%emt 0:04:04]} 31. h3 {[%emt 0:02:08]} h6 {[%emt 0:00:15]} 32. Na1 {[%emt 0:02:32]} Ka4 {[%emt 0:01:02]} 33. Nc2 {[%emt 0:00:15]} a5 {[%emt 0:01:22]} 34. Ne3 {[%emt 0:02:50]} Kxa3 {[%emt 0:00:59]} 35. Ng4 {[%emt 0:00:11]} Kb2 {[%emt 0:00:35]} 36. Nxf6 {[%emt 0:00:22]} a4 {[%emt 0:00:10]} 37. Nd7 {[%emt 0:00:36]} a3 {[%emt 0:00:24]} 38. Nxe5 {[%emt 0:00:07]} a2 {[%emt 0:00:11]} 39. Nc4+ {[%emt 0:00:32]} Nxc4 {[%emt 0:00:26]} 40. Kxc4 {[%emt 0:00:00]} a1=Q {[%emt 0:00:00]} 41. Kd4 {[%emt 0:00:10]} Qg1+ {[%emt 0:01:04]} 42. Ke5 {[%emt 0:00:03]} Kxc3 {[%emt 0:00:19]} 43. f6 {[%emt 0:00:28]} Qd4+ {[%emt 0:00:58]} 44. Kf5 {[%emt 0:00:20]} Qf2+ {[%emt 0:01:07]} 45. Ke6 {[%emt 0:00:15]} Kd4 {[%emt 0:00:14]} 46. e5 {[%emt 0:00:17]} c5 {[%emt 0:00:31]} 47. Ke7 {[%emt 0:00:31]} Kxe5 {[%emt 0:00:15]} 48. f7 {[%emt 0:00:02]} Qf6+ {[%emt 0:00:34]} 49. Ke8 {[%emt 0:00:15]} Qe6+ {[%emt 0:00:26]} 50. Kf8 {[%emt 0:00:01]} Kf6 {[%emt 0:00:39]} 51. Kg8 {[%emt 0:00:08]} Qxf7+ {[%emt 0:00:13]} 0-1

[Event "VI Sunway Sitges Open 2019"]
[Site "Sitges"]
[Date "2019.12.14"]
[Round "2.53"]
[White "Mohamed Anees M"]
[Black "Varsha Ramesh"]
[Result "1-0"]
[ECO "E11"]
[WhiteElo "2056"]
[BlackElo "1669"]
[Annotator "NA"]
[PlyCount "133"]
[EventDate "2019.12.13"]
[EventType "swiss"]
[EventCountry "ESP"]
[SourceTitle "playchess.com"]
[Source "ChessBase"]
[SourceQuality "1"]
[TimeControl "40/5400+30:1800+30"]

1. d4 {[%emt 0:17:30]} Nf6 {[%emt 0:00:22]} 2. c4 {[%emt 0:00:06]} e6 {[%emt 0:00:07]} 3. Nf3 {[%emt 0:00:20]} Bb4+ {[%emt 0:00:11]} 4. Bd2 {[%emt 0:00:15]} a5 {[%emt 0:00:16]} 5. g3 {[%emt 0:00:14]} d6 {[%emt 0:00:10]} 6. Bg2 {[%emt 0:00:15]} Nbd7 {[%emt 0:00:24]} 7. O-O {[%emt 0:00:56]} Bxd2 {[%emt 0:00:20]} 8. Qxd2 {[%emt 0:00:11]} O-O {[%emt 0:00:18]} 9. Nc3 {[%emt 0:01:31]} Qe7 {[%emt 0:01:59]} 10. Rac1 {[%emt 0:06:48]} e5 {[%emt 0:06:15]} 11. Rfd1 {[%emt 0:12:03]} c6 {[%emt 0:16:22]} 12. dxe5 {[%emt 0:06:33]} dxe5 {[%emt 0:00:05]} 13. Na4 {[%emt 0:06:05]} Qb4 {[%emt 0:13:33]} 14. Qc2 {[%emt 0:06:28]} Nc5 {[%emt 0:02:09]} 15. Nxc5 {[%emt 0:10:55]} Qxc5 {[%emt 0:00:03]} 16. Ne1 {[%emt 0:01:30]} Qe7 {[%emt 0:05:33]} 17. Qc3 {[%emt 0:03:56]} Bf5 {[%emt 0:02:51]} 18. Nf3 {[%emt 0:03:22]} Rfe8 {[%emt 0:02:04]} 19. Nh4 {[%emt 0:13:21]} Bg6 {[%emt 0:06:07]} 20. Nxg6 {[%emt 0:01:09]} hxg6 {[%emt 0:00:03]} 21. c5 {[%emt 0:00:58]} e4 {[%emt 0:04:18]} 22. Rd4 {[%emt 0:05:52]} Nd5 {[%emt 0:03:46]} 23. Qc4 {[%emt 0:00:39]} Nf6 {[%emt 0:05:18]} 24. Rcd1 {[%emt 0:01:50]} Qe5 {[%emt 0:04:02]} 25. e3 {[%emt 0:05:09]} Qf5 {[%emt 0:01:42]} 26. Qc2 {[%emt 0:00:46]} Qh5 {[%emt 0:05:05]} 27. R1d2 {[%emt 0:02:33]} Qf5 {[%emt 0:01:23]} 28. h3 {[%emt 0:01:03]} g5 {[%emt 0:02:05]} 29. g4 {[%emt 0:00:12]} Qe5 {[%emt 0:00:44]} 30. Ra4 {[%emt 0:01:11]} Qc7 {[%emt 0:09:25]} 31. Bxe4 {[%emt 0:02:27]} Nxe4 {[%emt 0:01:25]} 32. Rxe4 {[%emt 0:00:05]} Rxe4 {[%emt 0:00:22]} 33. Qxe4 {[%emt 0:00:04]} Rd8 {[%emt 0:00:13]} 34. Rc2 {[%emt 0:01:25]} Rd1+ {[%emt 0:02:35]} 35. Kg2 {[%emt 0:00:06]} Qd8 {[%emt 0:00:57]} 36. Rc4 {[%emt 0:02:34]} Rd2 {[%emt 0:02:25]} 37. Rd4 {[%emt 0:03:22]} Rxd4 {[%emt 0:00:02]} 38. Qxd4 {[%emt 0:00:06]} Qe7 {[%emt 0:00:35]} 39. Kg1 {[%emt 0:00:12]} Kh7 {[%emt 0:03:15]} 40. Qc3 {[%emt 0:00:54]} Qe4 {[%emt 0:00:53]} 41. a3 {[%emt 0:05:25]} Qb1+ {[%emt 0:11:39]} 42. Kh2 {[%emt 0:00:19]} Qe4 {[%emt 0:00:54]} 43. Qxa5 {[%emt 0:05:55]} Qe5+ {[%emt 0:00:33]} 44. Kg1 {[%emt 0:00:07]} Qxb2 {[%emt 0:00:12]} 45. Qb4 {[%emt 0:00:24]} Qc1+ {[%emt 0:04:31]} 46. Kg2 {[%emt 0:01:03]} Qc2 {[%emt 0:03:42]} 47. Qxb7 {[%emt 0:01:17]} Qe4+ {[%emt 0:00:51]} 48. Kg1 {[%emt 0:00:18]} Qd5 {[%emt 0:00:55]} 49. Qb1+ {[%emt 0:00:40]} g6 {[%emt 0:00:02]} 50. Qc2 {[%emt 0:00:35]} f5 {[%emt 0:02:09]} 51. gxf5 {[%emt 0:03:34]} gxf5 {[%emt 0:00:03]} 52. a4 {[%emt 0:00:27]} Qf3 {[%emt 0:00:42]} 53. Qc4 {[%emt 0:00:07]} Kg7 {[%emt 0:02:21]} 54. Qd4+ {[%emt 0:00:23]} Kf7 {[%emt 0:01:30]} 55. Qd7+ {[%emt 0:01:02]} Kg6 {[%emt 0:01:59]} 56. a5 {[%emt 0:00:34]} g4 {[%emt 0:01:14]} 57. Qd6+ {[%emt 0:00:20]} Kf7 {[%emt 0:00:37]} 58. Qf4 {[%emt 0:01:12]} Qd1+ {[%emt 0:01:11]} 59. Kh2 {[%emt 0:00:06]} gxh3 {[%emt 0:00:10]} 60. Qxf5+ {[%emt 0:00:15]} Ke7 {[%emt 0:00:03]} 61. Qe5+ {[%emt 0:01:02]} Kf7 {[%emt 0:00:10]} 62. Qc7+ {[%emt 0:00:24]} Kg8 {[%emt 0:00:39]} 63. a6 {[%emt 0:00:28]} Qf1 {[%emt 0:00:08]} 64. Qg3+ {[%emt 0:00:16]} Kf7 {[%emt 0:00:04]} 65. a7 {[%emt 0:00:30]} Qa1 {[%emt 0:00:35]} 66. Qc7+ {[%emt 0:00:05]} Kf6 {[%emt 0:00:32]} 67. Qxc6+ {[%emt 0:00:33]} 1-0